bitfinex/quotes_BTCUSD_20251202
["timestamp","ask_amount","ask_price","bid_price","bid_amount"]
[1764685530129,0.00133331,88680.0,88679.0,0.324]
[1764685530341,0.00133331,88680.0,88679.0,0.344]
[1764685530757,0.00133331,88680.0,88679.0,0.003]
[1764685530962,0.00133331,88680.0,88679.0,0.402]
[1764685531621,0.00133331,88680.0,88679.0,0.403]
[1764685532248,0.00133331,88680.0,88679.0,0.003]
[1764685534206,0.00133331,88680.0,88679.0,0.22853253]
[1764685534722,0.00133331,88680.0,88679.0,0.25108578]
[1764685535366,0.00133331,88680.0,88679.0,0.22853253]
[1764685536032,0.00133331,88680.0,88679.0,0.24432476]
[1764685536306,0.00133331,88680.0,88679.0,0.22853253]
[1764685537204,0.06370331,88680.0,88679.0,0.003]
[1764685537614,0.00133331,88680.0,88679.0,0.22853253]
[1764685538041,0.06370331,88680.0,88679.0,0.003]
[1764685538189,0.2892333,88680.0,88679.0,0.003]
[1764685538393,0.15400331,88680.0,88679.0,0.003]
[1764685538630,0.06370331,88680.0,88679.0,0.22853253]
[1764685538787,0.15400331,88680.0,88679.0,0.22853253]
[1764685538994,0.06370331,88680.0,88679.0,0.002]
[1764685539415,0.00133331,88680.0,88679.0,0.22753253]
[1764685540035,0.00133331,88680.0,88679.0,0.22553253]
[1764685541213,0.00133331,88680.0,88679.0,0.22653253]
[1764685542963,0.00133331,88680.0,88679.0,0.24908578]
[1764685543169,0.00133331,88680.0,88679.0,0.22653253]
[1764685543426,0.00133331,88680.0,88679.0,0.24908578]
[1764685544069,0.00133331,88680.0,88679.0,0.22653253]
[1764685545024,0.06370331,88680.0,88679.0,0.22653253]
[1764685545340,0.06370331,88680.0,88679.0,0.001]
[1764685545341,0.00133331,88680.0,88679.0,0.001]
[1764685545516,0.00133331,88680.0,88679.0,0.24908578]
[1764685546777,0.00133331,88680.0,88679.0,0.22553253]
[1764685547148,0.00133331,88680.0,88679.0,0.24808578]
[1764685548417,0.00133331,88680.0,88679.0,0.22753253]
[1764685548617,0.00133331,88680.0,88679.0,0.25008578]
[1764685548789,0.00133331,88680.0,88679.0,0.25108578]
[1764685551656,0.00133331,88680.0,88679.0,0.57408578]
[1764685551936,0.00133331,88680.0,88679.0,0.69953253]
[1764685552696,0.00133331,88680.0,88679.0,2.69953253]
[1764685553333,4.22e-05,88690.0,88689.0,0.5485071]
[1764685553461,0.00015632,88690.0,88689.0,0.5665071]
[1764685553865,0.00046253,88690.0,88689.0,0.9665071]
[1764685555878,0.00046253,88690.0,88689.0,0.9485071]
[1764685556046,0.00046253,88690.0,88689.0,0.9675071]
[1764685556827,0.00046253,88690.0,88689.0,2.9675071]
[1764685557713,0.00046253,88690.0,88689.0,1.96223336]
[1764685557714,0.15313253,88690.0,88689.0,1.96223336]
[1764685557909,0.15313253,88690.0,88622.0,1.12838149]
[1764685557910,0.01127726,88674.0,88654.0,0.0532398]
[1764685558112,0.037766,88689.0,88654.0,0.0532398]
[1764685558113,0.137766,88679.0,88662.0,0.01127878]
[1764685558344,0.51291967,88680.0,88671.0,0.23682829]
[1764685558345,0.01127649,88680.0,88671.0,0.23682829]
[1764685558495,0.01127649,88680.0,88667.0,0.01127815]
[1764685558496,0.01127675,88678.0,88668.0,0.01127802]
[1764685558697,0.3632989,88679.0,88656.0,0.01127955]
[1764685558698,0.14904326,88674.0,88656.0,0.01127955]
[1764685558901,0.01127789,88669.0,88660.0,0.01127904]
[1764685559108,0.22556125,88668.0,88659.0,0.02255834]
[1764685559305,0.01127764,88671.0,88665.0,0.0112784]
[1764685559546,0.01127853,88664.0,88657.0,0.323]
[1764685559736,0.01127802,88668.0,88659.0,0.01127917]
[1764685559932,0.23684948,88664.0,88658.0,0.22558557]
[1764685560134,0.22554428,88675.0,88671.0,0.22555247]
[1764685560380,0.22554428,88675.0,88670.0,0.01127777]
[1764685560381,0.22554799,88673.0,88670.0,0.01127777]
[1764685560589,0.22554799,88673.0,88665.0,0.0112784]
[1764685560590,0.00015632,88690.0,88684.0,0.22551921]
[1764685560793,0.00015632,88690.0,88680.0,0.01127649]
[1764685560794,0.00015632,88690.0,88689.0,0.04196]
[1764685560996,0.00015632,88690.0,88689.0,0.10579]
[1764685561210,0.00015632,88690.0,88689.0,0.53525071]
[1764685561443,0.00015632,88690.0,88689.0,0.5127]
[1764685561645,0.0002,88710.0,88689.0,0.5127]
[1764685561646,0.0002,88710.0,88709.0,0.22545626]
[1764685561854,0.0002,88710.0,88705.0,0.018]
[1764685561981,0.0002,88710.0,88707.0,0.23673407]
[1764685562194,0.01127281,88709.0,88703.0,0.01127357]
[1764685562511,0.01127306,88707.0,88696.0,0.01127446]
[1764685562712,0.01127357,88703.0,88700.0,0.01127395]
[1764685562889,0.01127306,88707.0,88702.0,0.0112737]
[1764685562890,0.2367363,88707.0,88702.0,0.0112737]
[1764685563240,0.23673689,88707.0,88703.0,0.23674402]
[1764685563476,0.23673689,88707.0,88703.0,0.01127357]
[1764685563647,0.01127319,88706.0,88702.0,0.23674728]
[1764685563899,0.00073478,88704.0,88702.0,0.23674653]
[1764685564102,0.01127281,88709.0,88704.0,0.2367411]
[1764685564256,0.23673002,88709.0,88705.0,0.01127332]
[1764685564593,0.01127281,88709.0,88705.0,0.23673795]
[1764685564778,0.01127332,88705.0,88700.0,0.01127395]
[1764685564990,0.23673726,88706.0,88703.0,0.01127357]
[1764685565215,0.23673726,88706.0,88702.0,0.22547368]
[1764685565530,0.0002,88710.0,88681.0,0.323]
[1764685565531,0.01127433,88697.0,88681.0,0.323]
[1764685565701,0.08629,88701.0,88688.0,0.01127548]
[1764685565702,0.04731,88701.0,88688.0,0.01127548]
[1764685565929,0.01127395,88700.0,88690.0,0.01127522]
[1764685566213,0.22546157,88707.0,88700.0,0.23675279]
[1764685566365,0.01127383,88701.0,88694.0,0.01127471]
[1764685566573,0.01127421,88698.0,88686.0,0.2367896]
[1764685566797,0.23678104,88690.0,88683.0,0.01127611]
[1764685566972,0.01127535,88689.0,88684.0,0.01127599]
[1764685567189,0.28590633,88688.0,88683.0,0.01127611]
[1764685567417,0.28590633,88688.0,88684.0,0.22551955]
[1764685567814,0.23678846,88687.0,88684.0,0.22551955]
[1764685568038,0.23678846,88687.0,88680.0,0.23680491]
[1764685568039,0.23679326,88685.0,88681.0,0.22564138]
[1764685568212,0.22552345,88683.0,88681.0,0.00011412]
[1764685568559,0.2909549,88682.0,88681.0,0.00011412]
[1764685568716,0.3874149,88682.0,88681.0,0.00011412]
[1764685569122,0.45566303,88682.0,88681.0,0.00011412]
[1764685569321,0.3874149,88682.0,88681.0,0.00011412]
[1764685569745,0.45566303,88682.0,88681.0,0.00011412]
[1764685570153,0.35920303,88682.0,88681.0,0.00011412]
[1764685570351,0.45566303,88682.0,88681.0,0.00011412]
[1764685570558,0.06252299,88705.0,88681.0,0.14446412]
[1764685570773,0.0001,88715.0,88681.0,0.14446412]
[1764685570774,0.0001,88715.0,88707.0,0.01127306]
[1764685571060,0.0001,88715.0,88709.0,0.22545626]
[1764685571890,0.0001,88715.0,88709.0,0.36980626]
[1764685572056,0.0001,88715.0,88709.0,0.38780626]
[1764685572427,0.0001,88715.0,88709.0,0.30405626]
[1764685573262,0.0001,88715.0,88709.0,0.38780626]
[1764685573470,0.0012,88710.0,88709.0,0.38780626]
[1764685573913,0.0012,88710.0,88709.0,0.38880626]
[1764685574492,0.0012,88710.0,88709.0,0.30505626]
[1764685574493,0.0002,88710.0,88709.0,0.30505626]
[1764685574693,0.0002,88710.0,88709.0,0.68705626]
[1764685575096,0.00111841,88710.0,88709.0,0.22645626]
[1764685575311,0.00111841,88710.0,88709.0,0.28705626]
[1764685575514,0.00111841,88710.0,88709.0,0.69380626]
[1764685577226,0.00111841,88710.0,88709.0,0.30605626]
[1764685577455,0.00111841,88710.0,88709.0,0.38980626]
[1764685577884,0.0001,88715.0,88714.0,0.22544356]
[1764685578100,0.04912,88773.0,88714.0,0.22544356]
[1764685578101,0.00900012,88788.0,88778.0,0.22527881]
[1764685578320,0.0003141,88780.0,88779.0,0.04119]
[1764685578551,0.0003141,88780.0,88779.0,0.2252785]
[1764685579001,0.0003141,88780.0,88779.0,0.2858785]
[1764685579251,0.0003141,88780.0,88772.0,0.04119]
[1764685579427,0.0003141,88780.0,88778.0,0.22527876]
[1764685579810,0.0003141,88780.0,88774.0,0.01126455]
[1764685580006,0.0003141,88780.0,88767.0,0.04119]
[1764685580007,0.00931422,88780.0,88767.0,0.04119]
[1764685580392,0.01126481,88772.0,88767.0,0.04119]
[1764685580584,0.01126481,88772.0,88759.0,0.01126646]
[1764685580585,0.22532567,88761.0,88747.0,0.01126798]
[1764685580817,0.2366074,88755.0,88744.0,0.01126836]
[1764685581020,0.2366074,88755.0,88720.0,0.67062245]
[1764685581022,0.01126836,88744.0,88735.0,0.04123]
[1764685581224,0.01126874,88741.0,88735.0,0.04123]
[1764685581369,0.01126836,88744.0,88738.0,0.01126912]
[1764685581572,0.2366332,88745.0,88739.0,0.011269]
[1764685581573,0.01126824,88745.0,88739.0,0.011269]
[1764685581781,0.2366369,88744.0,88738.0,0.01126912]
[1764685581985,0.01126912,88738.0,88735.0,0.04123]
[1764685582182,0.00038056,88738.0,88732.0,0.22539782]
[1764685582401,0.00038056,88738.0,88726.0,0.04123]
[1764685582566,0.00038056,88738.0,88726.0,0.01127065]
[1764685582567,0.01126989,88732.0,88726.0,0.01127065]
[1764685582783,0.10584068,88738.0,88726.0,0.01127065]
[1764685582784,0.00038056,88738.0,88737.0,0.22538512]
[1764685582981,0.00038056,88738.0,88737.0,0.28598512]
[1764685583366,0.00038056,88738.0,88737.0,0.36839512]
[1764685583496,0.00038056,88738.0,88736.0,0.2253876]
[1764685583927,0.00038056,88738.0,88736.0,0.22538633]
[1764685584124,0.00038056,88738.0,88735.0,0.01126951]
[1764685584286,0.00038056,88738.0,88736.0,0.22538766]
[1764685584481,0.00038056,88738.0,88737.0,0.001]
[1764685584729,0.00038056,88738.0,88737.0,0.002]
[1764685585140,0.00038056,88738.0,88737.0,0.22738512]
[1764685585296,0.00038056,88738.0,88737.0,0.002]
[1764685586360,0.16227056,88738.0,88737.0,0.001]
[1764685586780,0.01127128,88721.0,88712.0,0.01127243]
[1764685586973,0.01127078,88725.0,88706.0,0.01127319]
[1764685586974,0.01127166,88718.0,88706.0,0.01127319]
[1764685587180,0.01127166,88718.0,88707.0,0.23673262]
[1764685587181,0.22544432,88714.0,88707.0,0.23673262]
[1764685587384,0.04370179,88717.0,88708.0,0.01127294]
[1764685587385,0.01127192,88716.0,88708.0,0.01127294]
[1764685587587,0.26913846,88717.0,88709.0,0.01127281]
[1764685587816,0.03243,88717.0,88712.0,0.01127243]
[1764685587969,0.03243,88717.0,88706.0,0.22546337]
[1764685588176,0.03243,88717.0,88714.0,0.01127217]
[1764685588382,0.03243,88717.0,88714.0,0.23671531]
[1764685588705,0.03243,88717.0,88713.0,0.0112723]
[1764685588903,0.03243,88717.0,88713.0,0.23671748]
[1764685589111,0.03243,88717.0,88712.0,0.002]
[1764685589112,0.29087449,88714.0,88712.0,0.002]
[1764685589330,0.0602,88713.0,88712.0,0.002]
[1764685589522,0.15666,88713.0,88712.0,0.002]
[1764685589734,0.01127306,88707.0,88702.0,0.0112737]
[1764685589933,0.01127306,88707.0,88700.0,0.01127395]
[1764685589934,0.01127319,88706.0,88701.0,0.23675043]
[1764685590144,0.01804,88713.0,88711.0,0.2254505]
[1764685590367,0.01804,88713.0,88693.0,0.04119]
[1764685590368,0.04912,88724.0,88720.0,0.01127141]
[1764685590567,0.01804,88724.0,88723.0,0.01127103]
[1764685590766,0.00900012,88740.0,88732.0,0.01126989]
[1764685590767,0.22538367,88738.0,88732.0,0.01126989]
[1764685591086,0.01804,88737.0,88734.0,0.01126963]
[1764685591258,0.00038056,88738.0,88733.0,0.01126976]
[1764685591476,0.00038056,88738.0,88737.0,0.22538512]
[1764685592342,0.00038056,88738.0,88736.0,0.02253876]
[1764685592525,0.00038056,88738.0,88735.0,0.01126951]
[1764685592727,0.00038056,88738.0,88735.0,0.23665945]
[1764685592954,0.00038056,88738.0,88736.0,0.2253867]
[1764685593751,0.00038056,88738.0,88732.0,0.01126989]
[1764685593752,0.00038056,88738.0,88716.0,0.01127192]
[1764685593934,0.00038056,88738.0,88736.0,0.22538527]
[1764685594881,0.00038056,88738.0,88737.0,0.06527]
[1764685595140,0.00038056,88738.0,88737.0,0.14768]
[1764685595303,0.00123732,88738.0,88737.0,0.47068]
[1764685595512,0.00123732,88738.0,88737.0,2.47068]
[1764685595895,0.00123732,88738.0,88737.0,2.88872]
[1764685597138,0.00123732,88738.0,88737.0,2.88855]
[1764685597802,0.00123732,88738.0,88737.0,2.88955]
[1764685598005,0.00123732,88738.0,88737.0,2.95207299]
[1764685598219,0.0002,88780.0,88737.0,2.95207299]
[1764685598220,0.0002,88780.0,88779.0,0.2252785]
[1764685598429,0.0002,88780.0,88779.0,0.2433185]
[1764685598430,0.00031416,88780.0,88779.0,0.2433185]
[1764685598841,0.00031416,88780.0,88777.0,0.01126417]
[1764685599056,0.00031416,88780.0,88779.0,0.2433185]
[1764685599254,0.00031416,88780.0,88779.0,0.2860085]
[1764685599490,0.00031416,88780.0,88779.0,0.3862885]
[1764685599896,0.00031416,88780.0,88779.0,0.7092885]
[1764685600507,0.00031416,88780.0,88779.0,0.6090085]
[1764685600686,0.00031416,88780.0,88779.0,0.6270485]
[1764685600912,0.00031416,88780.0,88779.0,0.6090085]
[1764685601113,0.00031416,88780.0,88779.0,0.6270485]
[1764685601472,0.00031416,88780.0,88779.0,0.7092885]
[1764685601639,0.00031416,88780.0,88779.0,0.6932485]
[1764685601851,0.00031416,88780.0,88779.0,0.6280485]
[1764685602039,0.00031416,88780.0,88779.0,0.7102885]
[1764685602244,0.00031416,88780.0,88779.0,0.7112885]
[1764685602478,0.00031416,88780.0,88779.0,0.6290485]
[1764685602682,0.00031416,88780.0,88779.0,0.5502785]
[1764685602886,0.00031416,88780.0,88779.0,0.5683185]
[1764685603310,0.00031416,88780.0,88779.0,0.5673185]
[1764685603724,0.00128434,88780.0,88779.0,0.72055242]
[1764685603931,0.00128434,88780.0,88779.0,0.70351242]
[1764685604135,0.00128434,88780.0,88779.0,0.72155242]
[1764685604353,0.00128434,88780.0,88779.0,0.72255242]
[1764685604554,0.00128434,88780.0,88779.0,0.64031242]
[1764685604754,0.00128434,88780.0,88779.0,0.23954242]
[1764685604999,0.00128434,88780.0,88779.0,0.01426392]
[1764685605226,0.00128434,88780.0,88779.0,0.003]
[1764685605424,0.00128434,88780.0,88779.0,0.002]
[1764685606014,0.00128434,88780.0,88779.0,0.1627]
[1764685606431,0.00128434,88780.0,88779.0,0.4857]
[1764685606637,0.00128434,88780.0,88779.0,0.38573]
[1764685606838,0.00128434,88780.0,88779.0,0.40377]
[1764685607095,0.00128434,88780.0,88779.0,0.4837]
[1764685607381,0.00128434,88780.0,88779.0,0.4847]
[1764685607626,0.00128434,88780.0,88779.0,0.40277]
[1764685607881,0.00128434,88780.0,88779.0,0.38373]
[1764685608068,0.00128434,88780.0,88779.0,0.01904]
[1764685608270,0.00128434,88780.0,88779.0,0.003]
[1764685608681,0.00128434,88780.0,88779.0,0.01904]
[1764685609118,0.00128434,88780.0,88779.0,0.08177]
[1764685609643,0.00128434,88780.0,88779.0,0.02104]
[1764685609835,0.00128434,88780.0,88779.0,0.1637]
[1764685610064,0.00128434,88780.0,88779.0,0.1627]
[1764685610480,0.00128434,88780.0,88779.0,0.50622785]
[1764685610724,0.00128434,88780.0,88779.0,0.4837]
[1764685610863,0.00128434,88780.0,88779.0,0.4847]
[1764685611065,0.00128434,88780.0,88779.0,0.4837]
[1764685611265,0.00128434,88780.0,88779.0,0.46566]
[1764685611464,0.00128434,88780.0,88779.0,0.4857]
[1764685611898,0.00128434,88780.0,88779.0,0.4837]
[1764685612523,0.00128434,88780.0,88779.0,0.8867]
[1764685612790,0.00128434,88780.0,88779.0,0.86866]
[1764685613073,0.00128434,88780.0,88779.0,0.8857]
[1764685613485,0.00128434,88780.0,88779.0,0.8867]
[1764685613895,0.00128434,88780.0,88779.0,0.86866]
[1764685614096,0.00128434,88780.0,88779.0,0.8867]
[1764685614532,0.05,88782.0,88780.0,0.54827596]
[1764685614741,1e-08,88782.0,88781.0,2.55071033]
[1764685614951,1e-08,88782.0,88781.0,2.52818299]
[1764685615179,1e-08,88782.0,88781.0,2.92818299]
[1764685615371,4.228e-05,88790.0,88789.0,0.323]
[1764685615576,4.228e-05,88790.0,88789.0,2.46566]
[1764685616117,4.228e-05,88790.0,88789.0,2.8837]
[1764685616324,0.01250069,88800.0,88797.0,0.54823283]
[1764685616528,0.01250069,88800.0,88797.0,2.70893283]
[1764685616733,0.01250069,88800.0,88797.0,2.69089283]
[1764685616993,0.01250069,88800.0,88797.0,2.70893283]
[1764685617195,0.01250069,88800.0,88797.0,3.10893283]
[1764685617437,0.01250069,88800.0,88799.0,0.54822776]
[1764685617653,0.01250069,88800.0,88799.0,2.69088776]
[1764685618053,0.01250069,88800.0,88799.0,2.70892776]
[1764685618298,0.01250069,88800.0,88799.0,2.69088776]
[1764685618524,0.01250069,88800.0,88799.0,2.70892776]
[1764685618897,0.01250069,88800.0,88799.0,2.70992776]
[1764685620301,0.01250069,88800.0,88799.0,2.70892776]
[1764685620720,0.01311199,88800.0,88799.0,2.70992776]
[1764685620929,0.00822387,88816.0,88815.0,0.54818718]
[1764685621104,0.0083379,88816.0,88815.0,0.70888718]
[1764685621543,0.0001,88836.0,88815.0,0.70888718]
[1764685621544,0.0001,88836.0,88835.0,0.54813648]
[1764685621750,0.0001,88836.0,88835.0,0.69645648]
[1764685621751,0.00047995,88836.0,88835.0,0.69645648]
[1764685622407,0.0002,88840.0,88835.0,0.69645648]
[1764685622408,0.00082848,88854.0,88849.0,2.54810101]
[1764685622615,0.00082848,88854.0,88853.0,2.54809088]
[1764685622819,0.00094242,88854.0,88853.0,2.61091088]
[1764685623017,0.00077008,88866.0,88853.0,2.61091088]
[1764685623018,0.00077008,88866.0,88865.0,0.54806048]
[1764685623233,0.0110207,88888.0,88865.0,0.54806048]
[1764685623234,0.0110207,88888.0,88887.0,0.22500478]
[1764685623442,0.0110207,88888.0,88887.0,0.04905995]
[1764685623647,0.0110207,88888.0,88887.0,0.03101995]
[1764685623839,0.0110207,88888.0,88887.0,0.25602473]
[1764685624093,0.0110207,88888.0,88887.0,0.00037995]
[1764685624525,0.23602295,88888.0,88887.0,0.00037995]
[1764685624817,0.39500295,88888.0,88887.0,0.00037995]
[1764685625157,0.39500295,88888.0,88867.0,0.01804]
[1764685625158,0.39500295,88888.0,88853.0,0.01125454]
[1764685625159,0.01125606,88841.0,88829.0,0.01125758]
[1764685625367,0.01125454,88853.0,88840.0,0.01125619]
[1764685625572,0.01125454,88853.0,88834.0,0.02902056]
[1764685625573,0.01125593,88842.0,88834.0,0.02902056]
[1764685625788,0.22513418,88836.0,88834.0,0.00038056]
[1764685626377,0.22513395,88836.0,88834.0,0.00038056]
[1764685626916,0.1545,88835.0,88834.0,0.00038056]
[1764685627137,0.22513395,88836.0,88835.0,0.03102]
[1764685627138,0.00061094,88836.0,88835.0,0.03102]
[1764685627310,0.00061094,88836.0,88835.0,0.30784776]
[1764685627482,0.00061094,88836.0,88835.0,0.35402]
[1764685627931,0.00061094,88836.0,88835.0,0.323]
[1764685628254,0.00061094,88836.0,88834.0,0.00038056]
[1764685628255,0.22513648,88835.0,88834.0,0.00038056]
[1764685628430,0.04985,88839.0,88834.0,0.00038056]
[1764685628431,0.22511137,88845.0,88834.0,0.00038056]
[1764685628632,0.22513648,88835.0,88834.0,0.00038056]
[1764685629028,0.27498416,88836.0,88834.0,0.00038056]
[1764685629487,0.06393,88835.0,88834.0,0.00038056]
[1764685629703,0.22274813,88835.0,88834.0,0.00038056]
[1764685630620,0.24562013,88835.0,88834.0,0.00038056]
[1764685630844,0.24562013,88835.0,88791.0,0.03102]
[1764685630845,0.23650432,88794.0,88791.0,0.03102]
[1764685631069,0.01126164,88797.0,88791.0,0.0314007]
[1764685631070,0.01126189,88795.0,88791.0,0.0314007]
[1764685631320,0.01126189,88795.0,88791.0,0.0003807]
[1764685631321,0.22298654,88795.0,88791.0,0.0003807]
[1764685631549,0.06393,88792.0,88791.0,0.0003807]
[1764685631964,0.1545,88792.0,88791.0,0.0003807]
[1764685632351,0.17258,88792.0,88791.0,0.0003807]
[1764685632602,0.24082813,88792.0,88791.0,0.0003807]
[1764685632821,0.17258,88792.0,88791.0,0.0003807]
[1764685633229,0.1545,88792.0,88791.0,0.0003807]
[1764685633381,0.17258,88792.0,88791.0,0.0003807]
[1764685633760,0.24082813,88792.0,88791.0,0.0003807]
[1764685633973,0.22274813,88792.0,88791.0,0.0003807]
[1764685634579,0.24082813,88792.0,88791.0,0.0003807]
[1764685634785,0.24282813,88792.0,88791.0,0.0003807]
[1764685635358,0.24534914,88792.0,88791.0,0.0003807]
[1764685635945,0.3425521,88792.0,88791.0,0.0003807]
[1764685636154,0.3425521,88792.0,88753.0,0.03102]
[1764685636155,0.01126684,88756.0,88753.0,0.03102]
[1764685636350,0.01126684,88756.0,88753.0,0.00038146]
[1764685636351,0.22534195,88754.0,88753.0,0.00038146]
[1764685636750,0.37984195,88754.0,88753.0,0.00038146]
[1764685636955,0.39792195,88754.0,88753.0,0.00038146]
[1764685637127,0.17258,88754.0,88753.0,0.00038146]
[1764685637980,0.1545,88754.0,88753.0,0.00138146]
[1764685638179,0.01808,88754.0,88753.0,0.00138146]
[1764685638605,0.17258,88754.0,88753.0,0.00138146]
[1764685638799,0.17258,88754.0,88753.0,0.00338146]
[1764685639027,0.01808,88754.0,88753.0,0.00338146]
[1764685639356,0.50052969,88770.0,88753.0,0.00338146]
[1764685639357,0.09057,88787.0,88753.0,0.06542146]
[1764685639598,0.09057,88787.0,88760.0,0.01126633]
[1764685639599,0.01126468,88773.0,88760.0,0.01126633]
[1764685639804,0.08632813,88786.0,88756.0,0.02253368]
[1764685639805,0.22530073,88771.0,88756.0,0.02253368]
[1764685639951,0.01126519,88769.0,88759.0,0.01126646]
[1764685640157,0.01126519,88769.0,88753.0,0.01464868]
[1764685640158,0.01126608,88762.0,88753.0,0.01364868]
[1764685640370,0.01126582,88764.0,88759.0,0.01126646]
[1764685640615,0.23658346,88764.0,88757.0,0.01126671]
[1764685640762,0.01808,88770.0,88761.0,0.0112662]
[1764685640967,0.23657549,88767.0,88761.0,0.23658915]
[1764685641163,0.01126481,88772.0,88753.0,0.00238146]
[1764685641164,0.01126379,88780.0,88773.0,0.22529228]
[1764685641405,0.22528531,88777.0,88771.0,0.22529743]
[1764685641591,0.01808,88779.0,88772.0,0.01126481]
[1764685641925,0.06124,88788.0,88778.0,0.23654255]
[1764685642132,0.06124,88788.0,88785.0,0.23652385]
[1764685642133,0.04316,88788.0,88785.0,0.23652385]
[1764685642351,0.04316,88788.0,88778.0,0.01126405]
[1764685642352,0.50537308,88810.0,88778.0,0.01126405]
[1764685642353,0.00484339,88810.0,88798.0,0.01126151]
[1764685642569,0.00484339,88810.0,88809.0,0.5978424]
[1764685643471,0.00484339,88810.0,88809.0,0.62304386]
[1764685643691,0.00484339,88810.0,88809.0,0.57340386]
[1764685643895,0.00484339,88810.0,88809.0,0.57640386]
[1764685644120,0.00484339,88810.0,88809.0,0.35120146]
[1764685644347,0.00484339,88810.0,88809.0,0.34820146]
[1764685644603,0.00484339,88810.0,88809.0,0.02520146]
[1764685644856,0.00484339,88810.0,88809.0,0.00038146]
[1764685645767,0.00484339,88810.0,88809.0,0.00238146]
[1764685646003,0.00484339,88810.0,88809.0,0.00038146]
[1764685646257,0.16834351,88810.0,88809.0,0.00038146]
[1764685646528,0.00024441,88824.0,88809.0,0.00038146]
[1764685646529,0.00024441,88824.0,88818.0,0.54817958]
[1764685646791,0.00948816,88846.0,88818.0,0.54817958]
[1764685646792,0.00948816,88846.0,88827.0,0.54815676]
[1764685647064,0.00948816,88846.0,88827.0,0.98484676]
[1764685647827,0.00948816,88846.0,88827.0,1.00341676]
[1764685648554,0.00948816,88846.0,88827.0,0.96627676]
[1764685648770,0.00948816,88846.0,88827.0,0.94815676]
[1764685649012,0.00948816,88846.0,88827.0,0.96627676]
[1764685649514,0.00948816,88846.0,88827.0,0.64327676]
[1764685649728,0.01125568,88844.0,88827.0,0.64327676]
[1764685649933,0.02074359,88846.0,88827.0,0.64327676]
[1764685649934,0.00948816,88846.0,88827.0,0.64327676]
[1764685650344,0.24585254,88846.0,88827.0,0.64327676]
[1764685650557,0.02074359,88846.0,88827.0,0.64327676]
[1764685650793,0.24585339,88846.0,88827.0,0.64327676]
[1764685650993,0.24585339,88846.0,88809.0,0.00038146]
[1764685650994,0.01125859,88821.0,88809.0,0.00038146]
[1764685651142,0.06393,88826.0,88814.0,0.01125948]
[1764685651357,0.00716578,88828.0,88815.0,0.01125935]
[1764685651560,0.00716578,88828.0,88827.0,0.22515676]
[1764685652898,0.00716578,88828.0,88826.0,0.2251593]
[1764685652899,0.00716578,88828.0,88826.0,0.22515825]
[1764685654043,0.00716578,88828.0,88827.0,0.01857]
[1764685654398,0.00716578,88828.0,88827.0,0.03714]
[1764685654865,0.00716578,88828.0,88827.0,0.01857]
[1764685655682,0.00716578,88828.0,88823.0,0.01125834]
[1764685655683,0.01125885,88819.0,88809.0,0.00038146]
[1764685655842,0.09811578,88828.0,88813.0,0.01125961]
[1764685656049,0.09811578,88828.0,88809.0,0.00038146]
[1764685656050,0.00716578,88828.0,88821.0,0.01125859]
[1764685656253,0.00716578,88828.0,88824.0,0.23642199]
[1764685656449,0.01842349,88828.0,88818.0,0.01125897]
[1764685656654,0.01842349,88828.0,88803.0,0.01857]
[1764685656655,0.22517513,88820.0,88810.0,0.2251984]
[1764685656918,0.01125948,88814.0,88806.0,0.0112605]
[1764685657129,0.01125948,88814.0,88792.0,0.01857]
[1764685657130,0.04855,88810.0,88795.0,0.22523789]
[1764685657344,0.04855,88810.0,88789.0,0.02482]
[1764685657345,0.11419,88810.0,88789.0,0.02482]
[1764685657555,0.11419,88810.0,88775.0,0.01857]
[1764685657556,0.01126392,88779.0,88775.0,0.01857]
[1764685657761,0.01126278,88788.0,88775.0,0.01857]
[1764685657762,0.06564,88790.0,88778.0,0.22527905]
[1764685657972,0.01126392,88779.0,88775.0,0.00038162]
[1764685658185,0.04855,88776.0,88775.0,0.00038162]
[1764685658676,0.01126379,88780.0,88775.0,0.00038162]
[1764685658677,0.23654178,88780.0,88775.0,0.00038162]
[1764685658879,0.01126405,88778.0,88775.0,0.00038162]
[1764685659092,0.04855,88784.0,88779.0,0.01126392]
[1764685659302,0.01125897,88818.0,88807.0,0.01126037]
[1764685659571,0.04855,88822.0,88818.0,0.01125897]
[1764685659777,0.04855,88822.0,88813.0,0.01125961]
[1764685660227,0.04855,88822.0,88812.0,0.22519403]
[1764685660228,0.0112591,88817.0,88812.0,0.01125973]
[1764685660449,0.0112591,88817.0,88806.0,0.22520855]
[1764685660450,0.01126151,88798.0,88781.0,0.22527183]
[1764685660671,0.01126062,88805.0,88795.0,0.22523553]
[1764685660873,0.23649549,88797.0,88789.0,0.01126265]
[1764685661104,0.04855,88799.0,88792.0,0.23650683]
[1764685661316,0.04855,88799.0,88787.0,0.01126291]
[1764685661317,0.01126012,88809.0,88800.0,0.01126126]
[1764685661528,0.01126176,88796.0,88792.0,0.01126227]
[1764685661739,0.25000599,88793.0,88787.0,0.01126291]
[1764685661945,0.07914,88793.0,88792.0,0.22524551]
[1764685662126,0.07914,88793.0,88786.0,0.01126303]
[1764685662127,0.01126024,88808.0,88801.0,0.22522186]
[1764685662373,0.22522757,88800.0,88787.0,0.01126291]
[1764685662605,0.22522268,88801.0,88788.0,0.22525442]
[1764685662781,0.01126176,88796.0,88787.0,0.01126291]
[1764685663041,0.01126164,88797.0,88790.0,0.23651161]
[1764685663259,0.04855,88799.0,88795.0,0.01126189]
[1764685663477,0.50052969,88820.0,88792.0,0.01126227]
[1764685663478,0.01125948,88814.0,88807.0,0.01126037]
[1764685663691,0.01125935,88815.0,88802.0,0.011261]
[1764685663908,0.01816,88820.0,88796.0,0.01126176]
[1764685663909,0.01126075,88804.0,88796.0,0.01126176]
[1764685664132,0.22518584,88816.0,88804.0,0.01126075]
[1764685664133,0.01126012,88809.0,88804.0,0.01126075]
[1764685664363,0.01125973,88812.0,88805.0,0.01126062]
[1764685664587,0.22521342,88805.0,88799.0,0.01126138]
[1764685664789,0.23647939,88803.0,88799.0,0.01126138]
[1764685664940,0.04855,88800.0,88795.0,0.01816]
[1764685665156,0.22520773,88807.0,88798.0,0.01126151]
[1764685665347,0.01126012,88809.0,88800.0,0.01126126]
[1764685665509,0.22521237,88806.0,88797.0,0.01126164]
[1764685665710,0.04855,88798.0,88795.0,0.02942189]
[1764685665956,0.22523283,88797.0,88795.0,0.01816]
[1764685666155,0.22523433,88797.0,88795.0,0.01816]
[1764685666357,0.01126176,88796.0,88790.0,0.23651135]
[1764685666558,0.22523433,88797.0,88791.0,0.0112624]
[1764685666559,0.23649597,88797.0,88791.0,0.0112624]
[1764685666769,0.23649597,88797.0,88786.0,0.01126303]
[1764685666770,0.01126164,88797.0,88786.0,0.01126303]
[1764685667111,0.04855,88798.0,88794.0,0.01126202]
[1764685667314,0.05981151,88798.0,88793.0,0.01126214]